[Event "Live Chess"]
[Site "Chess.com"]
[Date "2023.05.21"]
[Round "-"]
[White "HoarseyHorsey"]
[Black "Conradical12"]
[Result "1/2-1/2"]
[WhiteElo "1437"]
[BlackElo "1595"]
[TimeControl "300"]
[EndTime "16:44:56 PDT"]
[Termination "Game drawn - insufficient material"]

1. d4 {[%clk 0:04:58.9]} 1... d5 {[%clk 0:04:55.7]} 2. c4 {[%clk 0:04:58.1]}
2... c6 {[%clk 0:04:54]} 3. cxd5 {[%clk 0:04:57.2]} 3... cxd5 {[%clk 0:04:52.5]}
4. Bf4 {[%clk 0:04:56.3]} 4... Nf6 {[%clk 0:04:50.6]} 5. e3 {[%clk 0:04:55.6]}
5... Nc6 {[%clk 0:04:49.9]} 6. Nf3 {[%clk 0:04:53.5]} 6... Bf5 {[%clk
0:04:49.5]} 7. Nc3 {[%clk 0:04:51.4]} 7... Rc8 {[%clk 0:04:49]} 8. Bb5 {[%clk
0:04:48.7]} 8... e6 {[%clk 0:04:46.1]} 9. Ne5 {[%clk 0:04:40.8]} 9... Qb6 {[%clk
0:04:41.5]} 10. Qa4 {[%clk 0:04:35.3]} 10... a6 {[%clk 0:04:36]} 11. Bxc6+
{[%clk 0:04:29.1]} 11... bxc6 {[%clk 0:04:34.6]} 12. O-O {[%clk 0:04:17.7]}
12... Bd6 {[%clk 0:04:30.5]} 13. Rac1 {[%clk 0:03:57.4]} 13... Bxe5 {[%clk
0:04:21.9]} 14. Bxe5 {[%clk 0:03:55.6]} 14... O-O {[%clk 0:04:18.1]} 15. Bxf6
{[%clk 0:03:54.2]} 15... gxf6 {[%clk 0:04:17.4]} 16. b4 {[%clk 0:03:05.8]} 16...
Kh8 {[%clk 0:04:09.3]} 17. a3 {[%clk 0:03:04.2]} 17... Rg8 {[%clk 0:04:07.7]}
18. Qd1 {[%clk 0:03:01.7]} 18... Rg7 {[%clk 0:04:06.9]} 19. g3 {[%clk
0:02:51.5]} 19... Rcg8 {[%clk 0:04:05.7]} 20. f3 {[%clk 0:02:24.7]} 20... Bh3
{[%clk 0:04:03.7]} 21. Rf2 {[%clk 0:02:23]} 21... Qb8 {[%clk 0:04:02]} 22. e4
{[%clk 0:02:15.3]} 22... dxe4 {[%clk 0:03:58.2]} 23. Nxe4 {[%clk 0:02:13.7]}
23... f5 {[%clk 0:03:56.4]} 24. Nf6 {[%clk 0:02:11.8]} 24... Rxg3+ {[%clk
0:03:51.8]} 25. hxg3 {[%clk 0:02:11]} 25... Rxg3+ {[%clk 0:03:50.6]} 26. Kh1
{[%clk 0:02:08.8]} 26... Qf4 {[%clk 0:03:35.7]} 27. Nh5 {[%clk 0:01:51.2]} 27...
Bg2+ {[%clk 0:03:28.1]} 28. Rxg2 {[%clk 0:01:46.2]} 28... Qh4+ {[%clk
0:03:26.5]} 29. Rh2 {[%clk 0:01:40.8]} 29... Rh3 {[%clk 0:03:23.7]} 30. Qg1
{[%clk 0:01:26.1]} 30... Qxh5 {[%clk 0:03:17.5]} 31. Qg2 {[%clk 0:01:15.9]}
31... Rxh2+ {[%clk 0:03:13.3]} 32. Qxh2 {[%clk 0:01:15.8]} 32... Qxf3+ {[%clk
0:03:12]} 33. Qg2 {[%clk 0:01:13.7]} 33... Qh5+ {[%clk 0:03:10.9]} 34. Kg1
{[%clk 0:01:09.9]} 34... Qh6 {[%clk 0:03:04.1]} 35. Qxc6 {[%clk 0:00:55.5]}
35... Qe3+ {[%clk 0:03:00.4]} 36. Kg2 {[%clk 0:00:53.9]} 36... Qe2+ {[%clk
0:02:59]} 37. Kg1 {[%clk 0:00:48.2]} 37... Qe3+ {[%clk 0:02:55.9]} 38. Kh2
{[%clk 0:00:46.7]} 38... Qh6+ {[%clk 0:02:52.1]} 39. Kg3 {[%clk 0:00:44.9]}
39... Kg7 {[%clk 0:02:46]} 40. Kf3 {[%clk 0:00:35.8]} 40... Kf6 {[%clk
0:02:40.9]} 41. Ke2 {[%clk 0:00:31.2]} 41... Qf4 {[%clk 0:02:39]} 42. Qc5 {[%clk
0:00:23.9]} 42... Kg6 {[%clk 0:02:35]} 43. Rg1+ {[%clk 0:00:19.4]} 43... Kf6
{[%clk 0:02:30.3]} 44. Qe5+ {[%clk 0:00:17.6]} 44... Qxe5+ {[%clk 0:02:29.4]}
45. dxe5+ {[%clk 0:00:17.5]} 45... Kxe5 {[%clk 0:02:28.8]} 46. Rg7 {[%clk
0:00:17.1]} 46... f6 {[%clk 0:02:24.6]} 47. Rxh7 {[%clk 0:00:16.2]} 47... f4
{[%clk 0:02:21.5]} 48. Ra7 {[%clk 0:00:16.1]} 48... f5 {[%clk 0:02:20.8]} 49.
Rxa6 {[%clk 0:00:15.6]} 49... Ke4 {[%clk 0:02:20.3]} 50. Ra5 {[%clk 0:00:15.5]}
50... e5 {[%clk 0:02:19.7]} 51. Rb5 {[%clk 0:00:14.9]} 51... f3+ {[%clk
0:02:19.1]} 52. Ke1 {[%clk 0:00:13.6]} 52... Ke3 {[%clk 0:02:18]} 53. Rxe5+
{[%clk 0:00:13.5]} 53... Kf4 {[%clk 0:02:16.2]} 54. b5 {[%clk 0:00:13.4]} 54...
Kxe5 {[%clk 0:02:15.1]} 55. b6 {[%clk 0:00:13.3]} 55... Kd6 {[%clk 0:02:13.1]}
56. b7 {[%clk 0:00:13.2]} 56... Kc7 {[%clk 0:02:12.3]} 57. b8=Q+ {[%clk
0:00:13.1]} 57... Kxb8 {[%clk 0:02:11.6]} 58. Kf2 {[%clk 0:00:13]} 58... Kb7
{[%clk 0:02:10.6]} 59. Kxf3 {[%clk 0:00:12.9]} 59... Ka6 {[%clk 0:02:10.2]} 60.
Kf4 {[%clk 0:00:12.3]} 60... Ka5 {[%clk 0:02:10.1]} 61. Kxf5 {[%clk 0:00:12.2]}
61... Ka4 {[%clk 0:02:09.5]} 62. Ke4 {[%clk 0:00:12.1]} 62... Kxa3 {[%clk
0:02:09.3]} 1/2-1/2

[Event "Live Chess"]
[Site "Chess.com"]
[Date "2023.05.21"]
[Round "-"]
[White "JoshMcK"]
[Black "xx_blindpuffin_xx"]
[Result "0-1"]
[WhiteElo "1521"]
[BlackElo "2197"]
[TimeControl "300"]
[EndTime "16:44:59 PDT"]
[Termination "xx_blindpuffin_xx won by resignation"]

1. e4 {[%clk 0:04:58.2]} 1... c6 {[%clk 0:04:58.9]} 2. d4 {[%clk 0:04:56.8]}
2... d5 {[%clk 0:04:58.3]} 3. e5 {[%clk 0:04:56.4]} 3... Bf5 {[%clk 0:04:55.3]}
4. h4 {[%clk 0:04:55.3]} 4... Bd7 {[%clk 0:04:53.5]} 5. Be3 {[%clk 0:04:53.1]}
5... e6 {[%clk 0:04:52.5]} 6. Nf3 {[%clk 0:04:49.5]} 6... c5 {[%clk 0:04:51.9]}
7. Be2 {[%clk 0:04:45.6]} 7... Nc6 {[%clk 0:04:49.9]} 8. O-O {[%clk 0:04:44.4]}
8... Nge7 {[%clk 0:04:48.1]} 9. c4 {[%clk 0:04:43.1]} 9... dxc4 {[%clk
0:04:46.6]} 10. Bxc4 {[%clk 0:04:41.6]} 10... Nf5 {[%clk 0:04:45.9]} 11. dxc5
{[%clk 0:04:34]} 11... Nxe3 {[%clk 0:04:37.9]} 12. fxe3 {[%clk 0:04:32.3]} 12...
Bxc5 {[%clk 0:04:37.4]} 13. Re1 {[%clk 0:04:31.1]} 13... Qc7 {[%clk 0:04:30.9]}
14. Nc3 {[%clk 0:04:27.8]} 14... Nxe5 {[%clk 0:04:27.9]} 15. Nxe5 {[%clk
0:04:24.7]} 15... Qxe5 {[%clk 0:04:27.7]} 16. Nb5 {[%clk 0:04:20.2]} 16... Rd8
{[%clk 0:04:14.1]} 17. Qb3 {[%clk 0:04:07.2]} 17... O-O {[%clk 0:04:07.2]} 18.
Rad1 {[%clk 0:04:03.6]} 18... Bc6 {[%clk 0:04:05.4]} 19. Nd4 {[%clk 0:03:54.5]}
19... Qg3 {[%clk 0:03:52.5]} 20. Qc2 {[%clk 0:03:43.4]} 20... Bb6 {[%clk
0:03:22.9]} 21. Nxc6 {[%clk 0:03:35.4]} 21... bxc6 {[%clk 0:03:22]} 22. Rxd8
{[%clk 0:03:29.7]} 22... Qxe1+ {[%clk 0:03:19.3]} 23. Kh2 {[%clk 0:03:24.9]}
23... Qxh4+ {[%clk 0:03:17.8]} 0-1

[Event "Live Chess"]
[Site "Chess.com"]
[Date "2023.05.21"]
[Round "-"]
[White "laminaaprod"]
[Black "LutherSullivan"]
[Result "0-1"]
[WhiteElo "2219"]
[BlackElo "2137"]
[TimeControl "300"]
[EndTime "16:45:02 PDT"]
[Termination "LutherSullivan won by resignation"]

1. d4 {[%clk 0:04:54.8]} 1... Nf6 {[%clk 0:04:57.9]} 2. c4 {[%clk 0:04:54.3]}
2... e6 {[%clk 0:04:56.8]} 3. Nc3 {[%clk 0:04:51.9]} 3... d5 {[%clk 0:04:55.1]}
4. Nf3 {[%clk 0:04:11.9]} 4... Be7 {[%clk 0:04:50.5]} 5. e3 {[%clk 0:04:10.2]}
5... O-O {[%clk 0:04:47.2]} 6. Bd3 {[%clk 0:04:06.7]} 6... dxc4 {[%clk
0:04:44.3]} 7. Bxc4 {[%clk 0:04:04.1]} 7... c5 {[%clk 0:04:43.7]} 8. O-O {[%clk
0:04:02.9]} 8... Nc6 {[%clk 0:04:40.2]} 9. a3 {[%clk 0:03:57.5]} 9... b6 {[%clk
0:04:36.7]} 10. dxc5 {[%clk 0:03:49.5]} 10... Bxc5 {[%clk 0:04:32.3]} 11. b4
{[%clk 0:03:49.1]} 11... Be7 {[%clk 0:04:30.1]} 12. Bb2 {[%clk 0:03:47.3]} 12...
Bb7 {[%clk 0:04:27.6]} 13. Qb3 {[%clk 0:03:44.7]} 13... Rc8 {[%clk 0:04:22.1]}
14. Rfd1 {[%clk 0:03:35]} 14... Qc7 {[%clk 0:04:19.9]} 15. Nb5 {[%clk
0:03:24.6]} 15... Qb8 {[%clk 0:04:18.1]} 16. Ng5 {[%clk 0:03:18.9]} 16... a6
{[%clk 0:04:06]} 17. Nc3 {[%clk 0:02:06.6]} 17... Ne5 {[%clk 0:04:02.6]} 18.
Bxe6 {[%clk 0:02:02.8]} 18... fxe6 {[%clk 0:03:55.5]} 19. Qxe6+ {[%clk
0:01:55.5]} 19... Nf7 {[%clk 0:03:50.9]} 20. Na4 {[%clk 0:01:31]} 20... Rc6
{[%clk 0:03:36]} 21. Qb3 {[%clk 0:01:08.1]} 21... Ng4 {[%clk 0:03:25.8]} 22. g3
{[%clk 0:01:00.8]} 22... Bxg5 {[%clk 0:03:22]} 23. Rac1 {[%clk 0:00:41.7]} 23...
Qe8 {[%clk 0:03:09.8]} 24. Rxc6 {[%clk 0:00:39]} 24... Qxc6 {[%clk 0:03:03.5]}
0-1

[Event "Live Chess"]
[Site "Chess.com"]
[Date "2023.05.21"]
[Round "-"]
[White "sebmoran1"]
[Black "LL220284LL"]
[Result "1/2-1/2"]
[WhiteElo "1380"]
[BlackElo "2367"]
[TimeControl "300"]
[EndTime "16:45:02 PDT"]
[Termination "Game drawn by repetition"]

1. d4 {[%clk 0:04:57.2]} 1... Nf6 {[%clk 0:04:58.8]} 2. c4 {[%clk 0:04:54.3]}
2... e6 {[%clk 0:04:58.3]} 3. Nc3 {[%clk 0:04:51.9]} 3... Bb4 {[%clk 0:04:57.6]}
4. g3 {[%clk 0:04:49.5]} 4... O-O {[%clk 0:04:52.5]} 5. Bg2 {[%clk 0:04:47.9]}
5... d5 {[%clk 0:04:52.2]} 6. Nf3 {[%clk 0:04:45.4]} 6... dxc4 {[%clk 0:04:51]}
7. O-O {[%clk 0:04:43.9]} 7... Nc6 {[%clk 0:04:50.7]} 8. Bg5 {[%clk 0:04:33.3]}
8... h6 {[%clk 0:04:45.9]} 9. Bxf6 {[%clk 0:04:19.7]} 9... Qxf6 {[%clk
0:04:45.8]} 10. e4 {[%clk 0:04:14.7]} 10... Rd8 {[%clk 0:04:43.4]} 11. e5 {[%clk
0:04:11.9]} 11... Qe7 {[%clk 0:04:40.9]} 12. Qc2 {[%clk 0:04:06.5]} 12... Nxd4
{[%clk 0:04:34.3]} 13. Nxd4 {[%clk 0:04:04.2]} 13... Rxd4 {[%clk 0:04:34.2]} 14.
Rad1 {[%clk 0:04:02.5]} 14... Bxc3 {[%clk 0:04:28.7]} 15. Qxc3 {[%clk
0:03:56.5]} 15... Rxd1 {[%clk 0:04:27.6]} 16. Rxd1 {[%clk 0:03:56.3]} 16... c6
{[%clk 0:04:24.5]} 17. Qxc4 {[%clk 0:03:52.9]} 17... Bd7 {[%clk 0:04:23.5]} 18.
Rd6 {[%clk 0:03:37.8]} 18... Be8 {[%clk 0:04:20]} 19. f4 {[%clk 0:03:32.9]}
19... Rd8 {[%clk 0:04:17.9]} 20. Qd4 {[%clk 0:03:28.5]} 20... Rxd6 {[%clk
0:04:16.3]} 21. Qxd6 {[%clk 0:03:28.4]} 21... Qxd6 {[%clk 0:04:14.6]} 22. exd6
{[%clk 0:03:28.3]} 22... Bd7 {[%clk 0:04:14.2]} 23. Kf2 {[%clk 0:03:22.9]} 23...
f6 {[%clk 0:04:13]} 24. Ke3 {[%clk 0:03:21.5]} 24... Kf7 {[%clk 0:04:11.4]} 25.
Kd4 {[%clk 0:03:19.8]} 25... b6 {[%clk 0:04:10.5]} 26. b4 {[%clk 0:03:16.2]}
26... g5 {[%clk 0:04:08.3]} 27. a3 {[%clk 0:03:08.7]} 27... Kg6 {[%clk
0:03:59.7]} 28. Be4+ {[%clk 0:02:53]} 28... Kh5 {[%clk 0:03:55.7]} 29. Bf3+
{[%clk 0:02:50.5]} 29... Kg6 {[%clk 0:03:54.8]} 30. Ke4 {[%clk 0:02:43.6]} 30...
gxf4 {[%clk 0:03:51.3]} 31. gxf4 {[%clk 0:02:39.4]} 31... c5 {[%clk 0:03:49.9]}
32. bxc5 {[%clk 0:02:36.8]} 32... bxc5 {[%clk 0:03:49.8]} 33. Kd3 {[%clk
0:02:34.8]} 33... Kf5 {[%clk 0:03:48.7]} 34. Kc4 {[%clk 0:02:31.5]} 34... Kxf4
{[%clk 0:03:47.8]} 35. Bb7 {[%clk 0:02:27.9]} 35... e5 {[%clk 0:03:30.9]} 36.
Kxc5 {[%clk 0:02:24.7]} 36... Kf5 {[%clk 0:03:29.5]} 37. Bc6 {[%clk 0:02:23.5]}
37... Ke6 {[%clk 0:03:27.5]} 38. Bd5+ {[%clk 0:02:20.2]} 38... Kf5 {[%clk
0:03:26.4]} 39. Bc6 {[%clk 0:02:19]} 39... Ke6 {[%clk 0:03:10.8]} 40. Bd5+
{[%clk 0:02:17.1]} 40... Kf5 {[%clk 0:03:10.1]} 41. Bc6 {[%clk 0:02:16.1]}
1/2-1/2

[Event "Live Chess"]
[Site "Chess.com"]
[Date "2023.05.21"]
[Round "-"]
[White "CeladonFish"]
[Black "stevochess11"]
[Result "0-1"]
[WhiteElo "1113"]
[BlackElo "1766"]
[TimeControl "300"]
[EndTime "16:45:04 PDT"]
[Termination "stevochess11 won by checkmate"]

1. d4 {[%clk 0:04:58.3]} 1... c6 {[%clk 0:04:56.6]} 2. c4 {[%clk 0:04:57.9]}
2... f6 {[%clk 0:04:55.3]} 3. Nc3 {[%clk 0:04:57.1]} 3... e5 {[%clk 0:04:54]} 4.
dxe5 {[%clk 0:04:55.9]} 4... Bb4 {[%clk 0:04:52.8]} 5. exf6 {[%clk 0:04:54.1]}
5... Bxc3+ {[%clk 0:04:51.5]} 6. bxc3 {[%clk 0:04:52.3]} 6... Qxf6 {[%clk
0:04:50.5]} 7. Bb2 {[%clk 0:04:49.1]} 7... Nh6 {[%clk 0:04:48.4]} 8. Nf3 {[%clk
0:04:48.2]} 8... O-O {[%clk 0:04:46.8]} 9. Qb3 {[%clk 0:04:46]} 9... Kh8 {[%clk
0:04:34.4]} 10. e3 {[%clk 0:04:40.6]} 10... Ng4 {[%clk 0:04:30.2]} 11. h3 {[%clk
0:04:32.7]} 11... Ne5 {[%clk 0:04:27.5]} 12. Be2 {[%clk 0:04:27.7]} 12... Na6
{[%clk 0:04:24.7]} 13. O-O {[%clk 0:04:24.5]} 13... Nc5 {[%clk 0:04:20.2]} 14.
Qb4 {[%clk 0:04:20.8]} 14... d6 {[%clk 0:04:02]} 15. Nxe5 {[%clk 0:04:13.4]}
15... Qxe5 {[%clk 0:03:58.6]} 16. f4 {[%clk 0:04:02.5]} 16... Qxe3+ {[%clk
0:03:55.6]} 17. Rf2 {[%clk 0:04:00.5]} 17... Ne4 {[%clk 0:03:51.6]} 18. Rf1
{[%clk 0:03:54.3]} 18... Nxf2 {[%clk 0:03:38.1]} 19. Rxf2 {[%clk 0:03:53.3]}
19... c5 {[%clk 0:03:35.8]} 20. Qa5 {[%clk 0:03:43.6]} 20... Be6 {[%clk
0:03:21.7]} 21. Qc7 {[%clk 0:03:42.1]} 21... Rxf4 {[%clk 0:03:16.9]} 22. Qxb7
{[%clk 0:03:39.1]} 22... Qxf2+ {[%clk 0:03:15.4]} 23. Kh2 {[%clk 0:03:36.2]}
23... Raf8 {[%clk 0:03:10.5]} 24. Bf3 {[%clk 0:03:27.1]} 24... Rxf3 {[%clk
0:03:07]} 25. h4 {[%clk 0:03:19.3]} 25... Qxh4+ {[%clk 0:03:05.2]} 26. Kg1
{[%clk 0:03:18.7]} 26... Rf1# {[%clk 0:03:02.8]} 0-1

[Event "Live Chess"]
[Site "Chess.com"]
[Date "2023.05.21"]
[Round "-"]
[White "flyingpuffins"]
[Black "mattihelenius2"]
[Result "1-0"]
[WhiteElo "1974"]
[BlackElo "489"]
[TimeControl "300"]
[EndTime "16:45:10 PDT"]
[Termination "flyingpuffins won by resignation"]

1. d4 {[%clk 0:04:57.8]} 1... Nc6 {[%clk 0:04:46.7]} 2. d5 {[%clk 0:04:48.5]}
2... Nb4 {[%clk 0:04:43.7]} 3. e4 {[%clk 0:04:45.9]} 3... Nf6 {[%clk 0:04:39.2]}
4. a3 {[%clk 0:04:42.9]} 4... Na6 {[%clk 0:04:36]} 5. Bxa6 {[%clk 0:04:40]} 5...
Nxe4 {[%clk 0:04:34.5]} 6. Nc3 {[%clk 0:04:39.9]} 6... Nxc3 {[%clk 0:04:32.5]}
7. bxc3 {[%clk 0:04:37.3]} 7... bxa6 {[%clk 0:04:31.6]} 8. Nf3 {[%clk
0:04:32.5]} 8... Bb7 {[%clk 0:04:30.5]} 9. c4 {[%clk 0:04:31.1]} 9... g6 {[%clk
0:04:26.6]} 10. O-O {[%clk 0:04:28.5]} 10... Bg7 {[%clk 0:04:25.8]} 11. Rb1
{[%clk 0:04:27.8]} 11... O-O {[%clk 0:04:24.2]} 12. Rxb7 {[%clk 0:04:26.4]}
12... Qc8 {[%clk 0:04:19.4]} 13. Rb1 {[%clk 0:04:22.6]} 13... d6 {[%clk
0:04:15.5]} 14. Be3 {[%clk 0:04:18.8]} 14... Qf5 {[%clk 0:04:13.5]} 15. Nd4
{[%clk 0:04:17.1]} 15... Qe4 {[%clk 0:04:08.1]} 16. Qd3 {[%clk 0:04:04]} 16...
Bxd4 {[%clk 0:04:08]} 17. Qxe4 {[%clk 0:04:02.7]} 1-0

[Event "Live Chess"]
[Site "Chess.com"]
[Date "2023.05.21"]
[Round "-"]
[White "DerbyKnight"]
[Black "peter-785"]
[Result "1-0"]
[WhiteElo "1550"]
[BlackElo "1166"]
[TimeControl "300"]
[EndTime "16:45:57 PDT"]
[Termination "DerbyKnight won by resignation"]

1. d4 {[%clk 0:04:58.3]} 1... d5 {[%clk 0:04:49.1]} 2. Nf3 {[%clk 0:04:55.1]}
2... e6 {[%clk 0:04:26.1]} 3. e3 {[%clk 0:04:53.2]} 3... c6 {[%clk 0:04:24.2]}
4. Bd3 {[%clk 0:04:52.6]} 4... Nf6 {[%clk 0:04:23.2]} 5. Nbd2 {[%clk 0:04:50.4]}
5... Be7 {[%clk 0:04:22.6]} 6. O-O {[%clk 0:04:48.9]} 6... c5 {[%clk 0:04:21.7]}
7. b3 {[%clk 0:04:47.2]} 7... cxd4 {[%clk 0:04:18.8]} 8. exd4 {[%clk 0:04:46]}
8... O-O {[%clk 0:04:17.7]} 9. Bb2 {[%clk 0:04:44.3]} 9... a6 {[%clk 0:04:16.5]}
10. Ne5 {[%clk 0:04:42.3]} 10... Nbd7 {[%clk 0:04:07.1]} 11. f4 {[%clk
0:04:40.3]} 11... Nxe5 {[%clk 0:04:05.2]} 12. fxe5 {[%clk 0:04:38.8]} 12... Nd7
{[%clk 0:04:03.8]} 13. Bxh7+ {[%clk 0:04:16.8]} 13... Kxh7 {[%clk 0:03:58.3]}
14. Qh5+ {[%clk 0:04:16.3]} 14... Kg8 {[%clk 0:03:57.1]} 15. Rf3 {[%clk
0:04:11.9]} 15... Bg5 {[%clk 0:03:54.3]} 16. Rg3 {[%clk 0:04:01]} 16... Bh6
{[%clk 0:03:52.5]} 17. Qxh6 {[%clk 0:03:59.3]} 1-0

[Event "Live Chess"]
[Site "Chess.com"]
[Date "2023.05.21"]
[Round "-"]
[White "birdseed45"]
[Black "Hussamalhaidar"]
[Result "1-0"]
[WhiteElo "1877"]
[BlackElo "1039"]
[TimeControl "300"]
[EndTime "16:46:15 PDT"]
[Termination "birdseed45 won by resignation"]

1. e4 {[%clk 0:04:58.7]} 1... Nc6 {[%clk 0:04:56.2]} 2. Nf3 {[%clk 0:04:56.9]}
2... e5 {[%clk 0:04:54.3]} 3. d4 {[%clk 0:04:55.3]} 3... exd4 {[%clk 0:04:52.1]}
4. Nxd4 {[%clk 0:04:55.2]} 4... Bc5 {[%clk 0:04:44.1]} 5. Be3 {[%clk 0:04:52]}
5... Nxd4 {[%clk 0:04:41.3]} 6. Bxd4 {[%clk 0:04:51.9]} 6... Bxd4 {[%clk
0:04:36.1]} 7. Qxd4 {[%clk 0:04:51.8]} 7... Nf6 {[%clk 0:04:31.6]} 8. Nc3 {[%clk
0:04:50]} 8... d6 {[%clk 0:04:27.6]} 9. Bc4 {[%clk 0:04:47.4]} 9... O-O {[%clk
0:04:22.1]} 10. O-O {[%clk 0:04:45.3]} 10... a6 {[%clk 0:04:11]} 11. a4 {[%clk
0:04:43.2]} 11... c5 {[%clk 0:04:00.5]} 12. Qd3 {[%clk 0:04:30.6]} 12... Re8
{[%clk 0:03:50.5]} 13. Rfe1 {[%clk 0:04:19.3]} 13... g6 {[%clk 0:03:41]} 14.
Rad1 {[%clk 0:04:15.1]} 14... b6 {[%clk 0:03:35.7]} 15. Qxd6 {[%clk 0:04:09.8]}
15... Qd7 {[%clk 0:03:26.6]} 16. Qxf6 {[%clk 0:04:01.5]} 1-0

[Event "Live Chess"]
[Site "Chess.com"]
[Date "2023.05.21"]
[Round "-"]
[White "domrobson"]
[Black "toog"]
[Result "0-1"]
[WhiteElo "1784"]
[BlackElo "2582"]
[TimeControl "300"]
[EndTime "16:46:17 PDT"]
[Termination "toog won by resignation"]

1. d4 {[%clk 0:04:57.6]} 1... e6 {[%clk 0:04:58]} 2. c4 {[%clk 0:04:56.9]} 2...
f5 {[%clk 0:04:57.3]} 3. g3 {[%clk 0:04:55.4]} 3... Nf6 {[%clk 0:04:56.4]} 4.
Bg2 {[%clk 0:04:55]} 4... Be7 {[%clk 0:04:55.9]} 5. Nf3 {[%clk 0:04:54.6]} 5...
O-O {[%clk 0:04:55.4]} 6. O-O {[%clk 0:04:48.5]} 6... b6 {[%clk 0:04:54.9]} 7.
Nc3 {[%clk 0:04:43.2]} 7... Bb7 {[%clk 0:04:52.8]} 8. d5 {[%clk 0:04:41.9]} 8...
a5 {[%clk 0:04:47.1]} 9. Bg5 {[%clk 0:04:36.9]} 9... Na6 {[%clk 0:04:44.9]} 10.
a3 {[%clk 0:04:35.1]} 10... Nc5 {[%clk 0:04:41.4]} 11. b4 {[%clk 0:04:24.5]}
11... axb4 {[%clk 0:04:41.3]} 12. axb4 {[%clk 0:04:22.9]} 12... Nce4 {[%clk
0:04:40.9]} 13. Bxf6 {[%clk 0:04:19.8]} 13... Bxf6 {[%clk 0:04:39.3]} 14. Nxe4
{[%clk 0:04:18.6]} 14... fxe4 {[%clk 0:04:37]} 15. Nd4 {[%clk 0:04:15.8]} 15...
exd5 {[%clk 0:04:33.1]} 16. Rxa8 {[%clk 0:04:12.8]} 16... Qxa8 {[%clk
0:04:29.6]} 17. Nb5 {[%clk 0:04:11.3]} 17... c6 {[%clk 0:04:25.7]} 18. Nd6
{[%clk 0:04:09.6]} 18... Be7 {[%clk 0:04:17.9]} 19. Nxb7 {[%clk 0:04:08.2]}
19... Qxb7 {[%clk 0:04:17.7]} 20. cxd5 {[%clk 0:04:07.6]} 20... cxd5 {[%clk
0:04:17.5]} 21. Qd4 {[%clk 0:04:04.1]} 21... Rc8 {[%clk 0:04:12.8]} 22. Rd1
{[%clk 0:04:02.6]} 22... Rc4 {[%clk 0:04:06.8]} 23. Qxd5+ {[%clk 0:04:01.7]}
23... Qxd5 {[%clk 0:04:05.4]} 24. Rxd5 {[%clk 0:04:01.1]} 24... Bxb4 {[%clk
0:04:05]} 25. Rxd7 {[%clk 0:04:00.1]} 25... Rc1+ {[%clk 0:04:03.7]} 26. Bf1
{[%clk 0:03:59.2]} 26... Bc5 {[%clk 0:04:03.3]} 27. Kg2 {[%clk 0:03:51.1]} 27...
Rc2 {[%clk 0:03:57]} 28. f3 {[%clk 0:03:41.5]} 28... e3 {[%clk 0:03:52.8]} 29.
Rd3 {[%clk 0:03:35.6]} 29... b5 {[%clk 0:03:48.2]} 30. Rb3 {[%clk 0:03:33.7]}
30... b4 {[%clk 0:03:47.2]} 31. g4 {[%clk 0:03:29.4]} 31... Rc3 {[%clk
0:03:44.9]} 32. Rb1 {[%clk 0:03:27.9]} 32... b3 {[%clk 0:03:43.4]} 33. f4 {[%clk
0:03:24.9]} 33... Ba3 {[%clk 0:03:33.1]} 34. Kf3 {[%clk 0:03:21.6]} 34... b2
{[%clk 0:03:31.9]} 35. Bh3 {[%clk 0:03:14.7]} 35... Rc1 {[%clk 0:03:29.9]} 36.
Rxb2 {[%clk 0:03:14.2]} 36... Bxb2 {[%clk 0:03:27.5]} 37. Kxe3 {[%clk
0:03:13.6]} 37... Rc3+ {[%clk 0:03:27]} 0-1